bitfinex-derivatives/quotes_ETHF0:USTF0_20250828
["timestamp","ask_amount","ask_price","bid_price","bid_amount"]
[1756358213688,20.2946,4576.2,4576.1,0.2975]
[1756358213884,0.0245,4576.1,4575.9,0.3074]
[1756358214087,0.0645,4575.6,4575.5,0.6145]
[1756358214288,20.2935,4575.6,4575.5,0.6145]
[1756358217486,20.2935,4575.6,4575.5,0.3074]
[1756358218287,0.0645,4577.0,4576.9,1.2827]
[1756358218492,20.2945,4577.0,4576.9,1.6921]
[1756358219590,20.2945,4577.0,4576.9,1.2827]
[1756358219788,0.04,4576.5,4576.4,0.3074]
[1756358219992,20.2935,4576.5,4576.4,0.3074]
[1756358220691,0.0645,4576.2,4576.1,1.0776]
[1756358220888,20.229,4576.2,4576.1,1.3847]
[1756358221295,20.2935,4576.2,4576.1,1.6921]
[1756358221796,0.0645,4577.0,4576.9,0.6682]
[1756358222099,20.2935,4577.0,4576.9,1.6921]
[1756358222296,20.2935,4577.0,4576.9,1.2827]
[1756358222498,20.2935,4577.0,4576.9,0.3074]
[1756358224392,0.0645,4577.0,4576.9,0.3074]
[1756358224592,12.9255,4577.0,4576.9,1.6921]
[1756358224993,12.861,4577.0,4576.9,1.6921]
[1756358225297,3.2078,4577.1,4577.0,1.06144]
[1756358225599,0.0245,4577.9,4577.8,1.6921]
[1756358225893,8.708,4577.9,4577.8,1.6921]
[1756358226195,0.0245,4578.3,4578.2,1.6921]
[1756358226403,31.477,4578.5,4578.4,1.6921]
[1756358226593,51.705,4578.5,4578.4,1.6921]
[1756358229797,20.225,4578.9,4578.7,0.39309]
[1756358230001,20.225,4578.9,4578.8,1.6921]
[1756358233705,0.0659,4579.6,4579.5,0.9756]
[1756358234006,20.2879,4579.6,4579.5,1.6921]
[1756358235104,20.222,4579.6,4579.5,1.6921]
[1756358235610,0.0246,4580.0,4579.6,1.0239]
[1756358235902,0.1,4580.2,4580.1,1.6921]
[1756358236203,0.1,4580.2,4580.1,2.08508]
[1756358237606,0.1,4580.2,4580.1,1.6921]
[1756358238293,0.1,4580.2,4580.1,4.8999]
[1756358239503,0.0246,4581.2,4580.2,0.3074]
[1756358239704,3.2078,4582.3,4581.7,0.3074]
[1756358239705,0.1246,4582.2,4581.7,0.3074]
[1756358240002,0.1246,4582.8,4582.3,0.3074]
[1756358240307,0.3259,4582.5,4582.4,1.6921]
[1756358240898,0.3259,4582.5,4582.4,1.2827]
[1756358241100,0.3259,4582.5,4582.4,1.0104]
[1756358241307,0.2013,4582.0,4581.4,41.2094]
[1756358241498,0.3214,4581.9,4581.8,1.6543]
[1756358242006,4.902,4582.2,4581.8,1.6543]
[1756358242206,5.2218,4582.2,4582.1,1.6505]
[1756358242703,5.2218,4582.2,4582.1,1.2477]
[1756358243006,5.2218,4582.2,4582.1,1.6405]
[1756358243302,5.2218,4582.2,4582.1,1.2477]
[1756358244704,5.2218,4582.2,4582.1,0.4976]
[1756358245308,5.2218,4582.2,4582.1,0.3011]
[1756358245504,0.123,4582.1,4581.8,0.3011]
[1756358245710,0.3198,4581.9,4581.8,0.3011]
[1756358246206,0.3198,4581.9,4581.8,1.6505]
[1756358246399,0.123,4582.1,4582.0,0.6644]
[1756358246594,0.123,4582.1,4582.0,1.6505]
[1756358246812,4.902,4582.2,4582.1,1.6505]
[1756358248011,0.123,4582.5,4582.4,0.6644]
[1756358248306,3.2078,4582.9,4582.4,0.6644]
[1756358248307,0.123,4582.8,4582.4,0.6644]
[1756358248510,0.3198,4582.8,4582.7,1.454]
[1756358248709,0.3198,4582.8,4582.7,1.6505]
[1756358249010,0.3198,4582.8,4582.7,0.3011]
[1756358249511,0.5785,4582.8,4582.7,0.2011]
[1756358254514,0.479,4582.0,4581.9,0.5833]
[1756358254716,20.7815,4582.0,4581.9,0.3011]
[1756358255215,0.356,4581.4,4581.3,0.9655]
[1756358255512,0.479,4581.4,4581.3,1.6505]
[1756358256106,0.479,4581.4,4581.3,1.2477]
[1756358256302,0.479,4581.3,4581.2,1.2477]
[1756358256513,23.7658,4581.3,4580.9,0.3011]
[1756358256821,0.479,4580.9,4580.8,0.6656]
[1756358257110,23.5328,4581.3,4580.8,0.6644]
[1756358257416,23.8888,4581.3,4581.2,1.3683]
[1756358257612,23.8888,4581.3,4581.2,1.6505]
[1756358257918,23.8888,4581.3,4581.2,1.2477]
[1756358258513,34.6478,4581.9,4581.3,0.9861]
[1756358258710,20.202,4581.8,4581.7,0.4679]
[1756358259019,31.563,4581.9,4581.7,0.6644]
[1756358259020,51.765,4581.9,4581.7,0.6644]
[1756358259217,0.479,4581.8,4581.7,0.6644]
[1756358259411,0.479,4581.8,4581.7,0.9466]
[1756358259613,20.202,4581.9,4581.8,0.9466]
[1756358259814,20.202,4581.9,4581.8,1.6505]
[1756358260009,20.3988,4582.6,4582.5,0.281]
[1756358260217,21.2186852,4582.6,4582.5,1.6505]
[1756358260920,20.202,4582.7,4582.5,0.85717]
[1756358261114,20.202,4582.7,4582.6,1.6505]
[1756358261315,20.74017761,4582.7,4582.6,1.6505]
[1756358261516,21.06317761,4582.7,4582.6,1.6505]
[1756358262211,21.50335586,4582.7,4582.6,1.6505]
[1756358263012,21.50338525,4582.7,4582.6,1.6505]
[1756358263217,0.4399,4582.2,4582.1,0.7862]
[1756358263411,0.7629,4582.2,4582.1,1.3695]
[1756358263607,1.3018714,4582.2,4582.1,1.6505]
[1756358263816,1.3018714,4582.2,4582.1,1.2477]
[1756358264117,21.6023714,4582.2,4582.1,0.3011]
[1756358264817,21.5028714,4582.2,4582.1,1.2477]
[1756358265007,21.5028714,4582.2,4582.1,1.6505]
[1756358265208,0.5389714,4582.2,4582.1,2.0433]
[1756358265715,0.5389714,4582.2,4582.1,1.6505]
[1756358265919,0.9788714,4582.2,4582.1,1.6505]
[1756358266123,1.3018714,4582.2,4582.1,1.6505]
[1756358267116,0.5389714,4582.2,4582.1,1.6505]
[1756358267513,1.3018714,4582.2,4582.1,1.6505]
[1756358267914,1.3018714,4582.2,4582.1,1.2477]
[1756358268123,1.3018714,4582.2,4582.1,0.7798]
[1756358268418,1.4013714,4582.2,4582.1,0.3011]
[1756358268613,0.9788714,4582.2,4581.8,0.685]
[1756358268820,0.4814,4581.9,4581.8,0.8815]
[1756358269023,1.3433714,4581.9,4581.8,1.0684]
[1756358269223,0.1995,4581.8,4581.6,0.2822]
[1756358269423,1.5428714,4581.7,4581.6,0.2822]
[1756358270214,1.5428714,4581.7,4581.6,0.4787]
[1756358270423,1.3433714,4581.7,4581.6,0.9466]
[1756358270618,1.3433714,4581.7,4581.6,1.2477]
[1756358271012,1.3433714,4581.7,4581.6,1.6505]
[1756358271408,1.3433714,4581.7,4581.6,1.2477]
[1756358271609,1.0163,4581.1,4581.0,3.2078]
[1756358271819,21.0619714,4581.1,4581.0,4.8625]
[1756358272017,0.5389714,4581.1,4581.0,4.8625]
[1756358272218,2.432,4581.3,4581.2,1.1595]
[1756358272416,1.35675736,4581.3,4581.2,1.6547]
[1756358272820,0.2054,4582.7,4582.6,1.74036]
[1756358273122,0.2054,4582.7,4581.6,0.98211]
[1756358273123,0.9196,4582.9,4582.8,1.6547]
[1756358273424,1.2436,4582.9,4582.8,1.6547]
[1756358273725,1.2436,4582.9,4582.8,2.04744]
[1756358273923,1.0112,4582.9,4582.8,2.04744]
[1756358274717,1.0112,4583.2,4583.1,1.6547]
[1756358274923,12.5312,4583.2,4583.1,1.6547]
[1756358275123,12.7636,4583.2,4583.1,1.6547]
[1756358275316,13.0481,4583.2,4583.1,1.6547]
[1756358275715,21.7381,4583.2,4583.1,1.6547]
[1756358275917,0.2054,4583.2,4583.1,1.6547]
[1756358276126,11.7546,4583.6,4583.5,1.6547]
[1756358277011,12.0391,4583.6,4583.5,1.2562]
[1756358278125,12.0391,4583.6,4583.5,0.9603]
[1756358278427,12.0391,4583.6,4583.5,0.4926]
[1756358279626,12.0391,4583.6,4583.2,0.2959]
[1756358279823,1.0112,4583.4,4583.3,0.9491]
[1756358280024,1.2436,4583.4,4583.3,1.3476]
[1756358280429,1.2436,4583.4,4583.3,1.6547]
[1756358280922,1.5281,4583.4,4583.3,1.6547]
[1756358281320,21.4917,4583.4,4582.9,0.3985]
[1756358281515,21.4917,4583.4,4582.5,3.2078]
[1756358281516,1.1275,4582.6,4582.5,3.2078]
[1756358281725,21.7241,4582.6,4582.2,0.2959]
[1756358281924,1.2436,4582.1,4582.0,4.8625]
[1756358282322,1.2436,4582.1,4582.0,5.03359341]
[1756358282731,1.5281,4582.1,4582.0,0.3071]
[1756358282926,0.6872,4581.8,4581.7,0.8911]
[1756358283116,1.5281,4581.8,4581.7,1.6547]
[1756358283629,1.2436,4581.6,4581.5,1.1243558]
[1756358283931,1.5281,4581.6,4581.5,0.9491]
[1756358284222,1.5281,4581.6,4581.5,1.2562]
[1756358284428,1.2436,4581.6,4581.5,1.6547]
[1756358284728,1.2436,4581.6,4581.5,1.83267268]
[1756358285330,20.196,4581.8,4581.5,1.83267268]
[1756358285533,20.196,4581.8,4581.7,0.6532]
[1756358285722,0.9175,4582.3,4582.2,0.3848]
[1756358285920,3.2078,4582.6,4582.5,0.6532]
[1756358286126,20.4024,4582.6,4582.5,1.6547]
[1756358286328,0.2054,4582.6,4582.5,1.6547]
[1756358286728,1.0112,4582.6,4582.5,1.6547]
[1756358287035,1.5281,4581.9,4581.8,0.3071]
[1756358287225,0.6872,4581.6,4581.5,0.6532]
[1756358287425,1.2436,4581.6,4581.5,1.6547]
[1756358287931,0.6106,4582.3,4582.2,0.2684]
[1756358288131,21.4404,4582.3,4582.2,0.9491]
[1756358288332,1.5277,4582.1,4582.0,0.3071]
[1756358288735,1.2432,4582.1,4582.0,1.6547]
[1756358289130,21.4402,4582.1,4582.0,1.6547]
[1756358289736,1.011,4582.1,4582.0,1.6547]
[1756358289930,3.2078,4582.7,4582.6,1.6547]
[1756358290837,23.7336,4583.2,4582.6,1.6547]
[1756358291030,23.7336,4583.2,4583.1,0.6532]
[1756358291231,24.4208,4583.2,4583.1,1.6547]
[1756358291430,24.653,4583.2,4583.1,1.6547]
[1756358291931,24.653,4583.2,4582.3,0.39278]
[1756358291932,0.5167,4583.1,4582.8,0.3071]
[1756358292136,1.5277,4582.9,4582.8,0.3071]
[1756358292337,0.3238,4582.9,4582.8,1.6547]
[1756358292533,23.4098,4583.2,4582.8,1.6547]
[1756358292839,1.2432,4583.1,4583.0,1.2562]
[1756358293137,1.2432,4583.1,4583.0,1.6547]
[1756358293330,21.4402,4583.1,4583.0,1.6547]
[1756358293732,21.208,4583.1,4583.0,1.6547]
[1756358294237,20.4024,4583.1,4583.0,1.6547]
[1756358294836,21.4402,4583.1,4583.0,1.6547]
[1756358295035,21.7247,4583.1,4583.0,1.2562]
[1756358295337,21.7247,4583.1,4582.6,0.3985]
[1756358295338,1.2432,4582.8,4582.7,0.7885]
[1756358295542,1.2411,4582.5,4582.4,40.8]
[1756358295735,1.5277,4582.3,4582.2,3.2078]
[1756358296337,1.5277,4582.3,4581.7,0.3071]
[1756358296338,1.5277,4582.3,4581.7,3.5149]
[1756358296548,1.5277,4582.3,4581.8,0.39283]
[1756358296731,0.9194,4582.3,4582.2,1.6547]
[1756358296933,4.1272,4582.7,4582.6,1.6547]
[1756358297134,14.981,4582.7,4582.6,1.6547]
[1756358297439,15.2655,4582.7,4582.6,1.2562]
[1756358297636,11.7732,4582.7,4582.6,1.2562]
[1756358297934,21.4392,4582.7,4582.6,1.6547]
[1756358298441,21.4392,4582.7,4582.6,0.9603]
[1756358298649,21.7237,4582.7,4582.6,0.9603]
[1756358299045,21.7237,4582.7,4582.3,0.2959]
[1756358299338,1.011,4582.5,4582.0,0.3071]
[1756358299539,1.5277,4582.1,4582.0,0.3071]
[1756358299834,0.6872,4581.9,4581.8,0.7885]
[1756358300038,0.6872,4581.9,4581.8,0.3071]
[1756358300039,1.5277,4581.9,4581.8,0.3071]
[1756358300238,1.5277,4581.9,4581.7,3.2078]
[1756358300435,1.5277,4581.8,4581.7,3.2078]
[1756358300639,1.5277,4581.8,4581.7,3.5149]
[1756358300844,1.2432,4581.8,4581.7,4.464]
[1756358301039,0.3238,4582.2,4581.9,0.6532]
[1756358301239,0.3238,4582.2,4582.0,0.6532]
[1756358301446,0.5278,4582.2,4582.1,1.6516]
[1756358301741,0.204,4582.2,4582.1,1.6516]
[1756358302039,5.7714,4582.7,4582.6,1.6516]
[1756358302245,0.6722,4582.7,4582.6,1.6516]
[1756358302438,15.8082,4582.7,4582.6,1.6516]
[1756358302635,15.8082,4582.7,4582.1,0.3001]
[1756358302934,0.204,4581.9,4581.8,4.8594]
[1756358303134,16.9437,4582.3,4582.2,0.6653]
[1756358303441,20.5199,4582.6,4582.5,1.6516]
[1756358303742,20.196,4582.6,4582.5,1.6516]
[1756358304142,3.2078,4582.8,4582.5,1.6516]
[1756358304334,14.061,4582.8,4582.7,0.6653]
[1756358304530,14.2933,4582.8,4582.7,1.6516]
[1756358304937,14.6172,4582.8,4582.7,1.6516]
[1756358305136,14.6172,4582.8,4582.7,1.2549]
[1756358305343,14.8993,4582.8,4582.7,1.2549]
[1756358306643,14.8993,4582.8,4582.7,0.9654]
[1756358306847,0.9961,4582.2,4582.1,1.6516]
[1756358307237,1.2284,4582.2,4582.1,1.2549]
[1756358307454,1.5105,4582.2,4582.1,0.9654]
[1756358308348,1.5105,4582.2,4582.1,1.2549]
[1756358308841,1.2284,4582.2,4582.1,1.6516]
[1756358309345,13.3888,4582.8,4581.8,3.2078]
[1756358309540,1.5105,4581.9,4581.8,3.2078]
[1756358309845,1.5105,4581.9,4581.8,3.5079]
[1756358310037,1.5105,4581.9,4581.8,4.8594]
[1756358310542,1.5105,4581.9,4581.8,4.4627]
[1756358310744,0.2685,4581.6,4581.5,0.3001]
[1756358310942,1.5105,4581.6,4581.5,0.4909]
[1756358311148,1.5105,4581.6,4581.5,1.2549]
[1756358311647,1.5105,4581.6,4581.5,0.9654]
[1756358311842,1.2284,4581.6,4581.5,1.6516]
[1756358312045,0.3239,4581.9,4581.6,0.9863]
[1756358312239,0.5279,4581.9,4581.8,0.9654]
[1756358312444,1.5105,4581.9,4581.8,0.4909]
[1756358312645,1.5105,4581.9,4581.8,0.3001]
[1756358313149,1.5105,4581.9,4581.3,3.2078]
[1756358313445,0.9045,4581.4,4581.3,3.2078]
[1756358313651,0.9045,4581.4,4581.1,0.3001]
[1756358313652,1.2284,4580.9,4580.8,3.5079]
[1756358313839,1.5105,4580.9,4580.8,0.3001]
[1756358314243,0.6722,4580.4,4580.3,4.1732]
[1756358314442,0.9961,4580.4,4580.3,4.8594]
[1756358314852,1.2284,4580.4,4580.3,4.8594]
[1756358315039,0.9961,4580.4,4580.3,4.8594]
[1756358315245,1.5105,4580.4,4580.3,3.2078]
[1756358315451,1.5105,4580.4,4580.3,3.5079]
[1756358315753,1.2284,4580.4,4580.3,4.8594]
[1756358316054,1.5105,4580.4,4580.3,0.3001]
[1756358316245,0.8383,4580.3,4580.0,0.2895]
[1756358316450,1.5105,4580.1,4580.0,0.5896]
[1756358317047,1.5105,4580.1,4580.0,0.3001]
[1756358317851,0.6722,4580.1,4579.8,3.2078]
[1756358318152,1.5105,4579.9,4579.8,4.4627]
[1756358318652,1.5105,4579.9,4579.8,4.8594]
[1756358318851,1.5105,4579.9,4579.8,1.6516]
[1756358319055,1.2284,4579.9,4579.8,1.6516]
[1756358322147,1.5105,4579.9,4579.8,1.2549]
[1756358322348,1.5105,4579.9,4579.4,0.3967]
[1756358322349,1.1866,4579.6,4578.8,3.2078]
[1756358322559,1.2284,4579.0,4578.9,1.2549]
[1756358322758,11.2624,4579.0,4578.9,1.2549]
[1756358323054,11.5445,4579.0,4578.9,0.3001]
[1756358323456,0.5279,4579.7,4579.6,1.6516]
[1756358323650,51.647,4580.0,4579.6,1.6516]
[1756358323853,51.647,4580.0,4579.9,0.6653]
[1756358324053,51.647,4580.0,4579.9,1.6516]
[1756358324358,52.6431,4580.0,4579.9,1.6516]
[1756358324547,52.8754,4580.0,4579.9,1.6516]
[1756358327464,53.1575,4580.0,4579.9,0.3001]
[1756358328757,0.6722,4579.7,4579.6,1.062]
[1756358328952,1.2284,4579.7,4579.6,1.6516]
[1756358330063,0.6722,4579.7,4579.6,1.6516]
[1756358330254,31.649,4580.0,4579.9,1.6516]
[1756358330455,52.1769,4580.0,4579.9,1.6516]
[1756358330654,52.6451,4580.0,4579.9,1.6516]
[1756358330956,21.4324,4580.1,4580.0,1.6516]
[1756358332557,21.721,4580.1,4580.0,1.6516]
[1756358332759,21.721,4580.1,4580.0,1.2549]
[1756358333654,21.721,4580.1,4580.0,1.6824]
[1756358333861,21.721,4580.1,4580.0,1.2549]
[1756358334361,21.721,4580.1,4580.0,0.9654]
[1756358334662,21.721,4580.1,4580.0,0.4909]
[1756358334862,21.721,4580.1,4580.0,0.3001]
[1756358335050,21.721,4580.1,4579.3,3.6353]
[1756358335051,20.8762,4580.1,4579.4,0.3032]
[1756358335256,1.227,4579.5,4579.4,1.7016]
[1756358335463,21.431,4579.5,4579.4,1.7016]
[1756358335958,0.6701,4579.5,4579.4,1.7016]
[1756358336264,1.227,4579.9,4579.8,1.7016]
[1756358336562,5.01,4579.9,4579.8,1.7016]
[1756358336755,4.7774,4579.9,4579.8,1.7016]
[1756358337151,0.2326,4580.2,4579.8,1.7016]
[1756358337356,0.5263,4580.0,4579.9,1.7016]
[1756358337555,0.9944,4580.0,4579.9,1.7016]
[1756358337963,1.227,4580.0,4579.9,1.7016]
[1756358338558,0.6701,4580.1,4580.0,1.4383]
[1756358338759,0.9944,4580.1,4580.0,1.7016]
[1756358338954,1.227,4580.1,4580.0,1.7016]
[1756358339160,3.5321,4580.4,4580.1,1.0377]
[1756358339368,1.227,4580.4,4580.3,1.7016]
[1756358339568,13.2174,4580.4,4580.3,1.7016]
[1756358339768,0.6701,4580.4,4580.3,1.0914]
[1756358339964,21.1974,4580.4,4580.3,1.0914]
[1756358340159,21.43,4580.4,4580.3,1.0914]
[1756358340361,21.43,4580.4,4580.3,1.7016]
[1756358340967,21.7186,4580.4,4580.3,1.7016]
[1756358341160,21.7186,4580.4,4580.3,0.9671]
[1756358341365,0.6701,4580.0,4579.3,3.2078]
[1756358341666,0.4681,4578.8,4578.7,0.7651]
[1756358341976,21.1974,4578.8,4578.7,1.7016]
[1756358342269,0.5212,4579.1,4578.7,1.7016]
[1756358342270,20.203,4579.4,4579.3,1.3946]
[1756358342459,20.203,4579.6,4579.3,0.6639]
[1756358342659,0.3243,4579.8,4579.5,0.6639]
[1756358342860,0.5263,4579.8,4579.7,1.7016]
[1756358343060,0.9944,4579.8,4579.7,1.7016]
[1756358343264,20.7293,4579.9,4579.8,1.4996]
[1756358343571,21.43,4579.9,4579.8,1.7016]
[1756358344470,1.5156,4579.6,4579.5,0.8122]
[1756358344962,0.5569,4579.5,4579.0,3.2078]
[1756358345270,1.5156,4579.1,4579.0,3.511]
[1756358345466,1.5156,4579.1,4578.7,0.7345]
[1756358345467,21.7186,4579.1,4578.7,0.307]
[1756358345659,21.7186,4579.1,4578.4,3.2078]
[1756358345660,1.5156,4578.5,4578.4,3.2078]
[1756358345964,21.7176,4578.5,4578.4,3.2078]
[1756358346364,0.5212,4578.4,4578.2,0.3032]
[1756358346570,1.5156,4578.3,4578.2,0.8122]
[1756358347064,1.5156,4578.3,4577.9,3.6353]
[1756358347267,20.202,4578.5,4577.9,3.2078]
[1756358347268,1.5156,4578.0,4577.9,3.2078]
[1756358347572,1.5156,4577.8,4577.7,0.3032]
[1756358347965,0.8448,4577.7,4577.5,0.3032]
[1756358348166,1.5149,4577.6,4577.5,0.3032]
[1756358348675,1.5149,4577.6,4577.5,0.5052]
[1756358348867,1.5149,4577.6,4577.5,1.2741]
[1756358349262,1.5149,4577.2,4577.1,4.1749]
[1756358349570,1.5149,4577.2,4577.1,3.2078]
[1756358350577,0.6701,4576.4,4576.3,1.3604]
[1756358350878,0.202,4576.4,4576.3,42.8949]
[1756358351173,3.2078,4577.4,4577.1,1.7016]
[1756358351174,0.994,4577.2,4577.1,1.7016]
[1756358351368,21.4313,4577.2,4577.1,1.7016]
[1756358351768,21.4313,4577.2,4577.1,2.09483]
[1756358352065,20.407,4577.2,4577.1,2.09483]
[1756358352775,21.4313,4577.2,4577.1,1.7016]
[1756358354264,0.5209,4577.6,4577.1,1.7016]
[1756358354472,1.5149,4577.2,4577.1,1.2741]
[1756358354672,0.3239,4577.6,4577.1,1.7016]
[1756358354972,0.7582,4577.9,4577.8,0.6639]
[1756358355277,21.4333,4577.9,4577.8,1.7016]
[1756358356676,21.7219,4577.9,4577.8,1.7016]
[1756358357372,21.7219,4577.9,4577.8,0.3032]
[1756358357580,0.4681,4577.5,4577.4,0.6639]
[1756358357879,21.4343,4577.5,4577.4,2.09481]
[1756358358178,21.202,4577.5,4577.4,1.7016]
[1756358360174,0.202,4577.8,4577.7,1.7016]
[1756358360381,20.41,4577.8,4577.7,1.7016]
[1756358360576,20.8781,4577.8,4577.7,1.7016]
[1756358360876,21.202,4577.8,4577.7,1.7016]
[1756358361072,20.41,4577.8,4577.7,1.7016]
[1756358361479,21.1892,4577.8,4577.7,1.7016]
[1756358361881,1.2136,4577.8,4577.7,1.7016]
[1756358362180,21.4216,4577.8,4577.7,1.7016]
[1756358362581,21.1683,4577.8,4577.4,3.2078]
[1756358362778,1.5101,4577.5,4577.4,3.2078]
[1756358362979,21.7181,4577.5,4577.4,3.2078]
[1756358363577,21.7181,4577.5,4577.4,4.4465]
[1756358363882,20.7262,4577.5,4577.4,4.8701]
[1756358364279,21.1826,4577.5,4577.4,4.8701]
[1756358364477,21.415,4577.5,4577.4,4.8701]
[1756358365384,21.7181,4577.5,4577.4,3.2078]
[1756358365580,0.6506,4576.8,4576.7,3.2078]
[1756358365785,21.7181,4576.8,4576.7,3.2078]
[1756358366380,4.05073254,4577.5,4576.7,8.8701]
[1756358366381,0.324,4577.4,4576.7,8.8701]
[1756358366576,0.1942,4577.9,4577.8,2.05547]
[1756358366886,20.4012,4577.9,4577.8,1.6623]
[1756358367083,20.207,4577.9,4577.8,9.08854]
[1756358367288,20.207,4577.9,4577.8,8.8701]
[1756358367489,20.207,4577.9,4577.8,49.6701]
[1756358368189,0.5355,4578.6,4577.8,49.6701]
[1756358368394,0.883,4578.6,4578.5,1.6623]
[1756358368596,10.4972,4578.6,4578.5,1.6623]
[1756358369393,10.8003,4578.6,4578.5,0.7419]
[1756358369695,1.4313,4577.9,4577.8,3.2078]
[1756358369896,21.6383,4577.9,4577.8,3.2078]
[1756358370091,20.207,4577.9,4577.2,41.61682]
[1756358370291,20.42546001,4577.9,4577.1,3.2078]
[1756358370497,0.5355,4577.3,4577.1,3.2078]
[1756358370697,20.9867,4577.2,4577.1,3.2078]
[1756358370900,20.6836,4577.2,4577.1,3.2078]
[1756358371098,20.6836,4577.2,4577.1,3.786]
[1756358371297,20.9867,4577.2,4577.1,3.4932]
[1756358372293,20.9867,4577.2,4577.1,3.2078]
[1756358373694,20.4512,4577.2,4576.5,3.4932]
[1756358374000,0.5355,4576.9,4576.5,3.2078]
[1756358374189,20.206,4577.2,4576.5,3.2078]
[1756358374898,0.2452,4576.9,4576.8,1.39506]
[1756358375085,20.4512,4577.1,4577.0,0.39324]
[1756358375290,20.4512,4577.1,4577.0,1.39504]
[1756358375799,20.4512,4577.1,4577.0,1.0018]
[1756358376196,20.6454,4577.1,4577.0,1.6623]
[1756358376392,1.1282,4577.5,4577.4,1.2387]
[1756358376597,21.3352,4577.5,4577.4,1.2387]
[1756358377301,21.6383,4577.5,4577.4,0.2854]
[1756358377595,0.6506,4576.8,4576.7,0.58827]
[1756358377794,21.3352,4576.8,4576.7,2.05557]
[1756358378388,21.3352,4576.8,4576.7,1.63197]
[1756358378593,21.6383,4576.8,4576.7,0.2854]
[1756358378795,21.6383,4576.8,4576.7,0.67867]
[1756358378996,21.6383,4576.8,4576.5,3.60108]
[1756358379193,1.4313,4576.6,4576.5,3.2078]
[1756358379395,1.4313,4576.6,4575.9,3.2078]
[1756358379602,1.4313,4576.0,4575.9,3.60113]
[1756358379901,21.6373,4576.0,4575.9,4.08153]
[1756358380198,0.2452,4576.5,4576.4,2.05559]
[1756358380404,20.206,4576.5,4576.4,2.05559]
[1756358381402,20.4002,4576.5,4576.4,2.05559]
[1756358382304,20.5961,4576.5,4576.4,2.05559]
[1756358382505,0.87,4576.5,4576.4,2.05559]
[1756358382708,21.077,4576.5,4576.4,2.05559]
[1756358383102,21.3801,4576.5,4576.4,1.13519]
[1756358383297,21.3801,4576.5,4576.4,1.42799]
[1756358383498,21.077,4576.5,4576.4,5.26339]
[1756358383703,0.87,4576.5,4576.4,5.26339]
[1756358385503,0.87,4576.5,4576.4,4.8701]
[1756358387608,1.1731,4576.5,4576.4,3.2078]
[1756358387808,0.5424,4576.2,4576.1,0.2854]
[1756358388006,1.1731,4576.2,4576.1,0.2854]
[1756358388308,1.1731,4576.2,4576.1,0.7419]
[1756358388600,1.1731,4576.2,4576.1,1.2387]
[1756358389008,1.1731,4576.2,4576.1,1.6623]
[1756358389308,0.87,4576.2,4576.1,1.6623]
[1756358392111,1.1584,4576.2,4575.8,3.2078]
[1756358392407,0.8724,4575.9,4575.8,4.9075]
[1756358392606,1.1608,4575.9,4575.8,0.2999]
[1756358392797,0.6172,4575.8,4575.5,0.2934]
[1756358393000,20.206,4576.1,4575.5,0.972]
[1756358393001,1.1608,4575.6,4575.5,0.972]
[1756358393204,21.3668,4575.6,4575.5,0.972]
[1756358393404,21.3668,4575.6,4575.5,1.3998]
[1756358393610,21.0784,4575.6,4575.5,1.6997]
[1756358395312,21.3668,4575.6,4575.5,0.2999]
[1756358395701,20.7496,4575.6,4575.4,0.39337]
[1756358396010,0.8724,4575.5,4575.4,2.09307]
[1756358399216,0.832,4576.3,4576.2,0.4822]
[1756358399414,21.039,4576.3,4576.2,1.6997]
[1756358399715,21.039,4576.3,4576.2,0.4977]
[1756358399716,25.58632,4576.3,4576.2,0.4977]
[1756358399916,25.58632,4576.3,4575.3,3.60119]
[1756358399917,0.3901,4575.4,4575.3,3.60119]
[1756358400110,0.9114,4575.4,4575.3,5.00099]
[1756358400310,5.3129,4575.4,4575.3,5.00099]
[1756358400712,5.7474,4575.4,4575.3,4.6076]
[1756358400916,5.7474,4575.4,4575.3,4.4098]
[1756358401114,5.7474,4575.4,4575.3,4.6076]
[1756358401316,10.1334,4575.4,4575.3,4.6076]
[1756358401617,0.1885,4575.7,4575.6,1.30336]
[1756358401807,0.1885,4576.0,4575.9,0.39333]
[1756358402012,4.4189,4576.0,4575.9,2.09303]
[1756358402312,4.6205,4576.0,4575.9,2.09303]
[1756358402511,4.6205,4576.0,4575.9,1.79313]
[1756358402512,4.8534,4576.0,4575.9,1.79313]
[1756358402713,0.4769,4576.0,4575.9,2.09303]
[1756358402917,13.3169,4576.0,4575.9,2.09303]
[1756358403113,0.1885,4576.0,4575.9,2.09303]
[1756358403316,0.2329,4576.5,4576.2,1.6997]
[1756358403317,0.4769,4576.3,4576.2,1.6997]
[1756358403521,9.1069,4576.3,4576.2,1.6997]
[1756358404022,18.7009,4576.3,4576.2,1.6997]
[1756358404320,0.3901,4576.0,4575.8,40.8]
[1756358404516,0.5213,4575.9,4575.8,40.8]
[1756358404712,0.5213,4575.9,4575.8,41.5212]
[1756358404913,0.9114,4576.5,4576.4,1.1154]
[1756358405114,20.5951,4576.5,4576.0,0.2844]
[1756358405415,0.6785,4576.1,4575.7,0.67775]
[1756358405616,20.42352,4576.5,4575.7,0.97115]
[1756358405617,0.2016,4575.8,4575.7,0.97115]
[1756358405818,0.9114,4575.8,4575.7,1.79315]